[Event "Early-Titled-Tuesday-Blitz-February-06-2024"]
[Site "Chess.com"]
[Date "2024.02.06"]
[Round "7"]
[White "viktorskliarov"]
[Black "starworld123"]
[Result "0-1"]
[WhiteElo "2632"]
[BlackElo "2832"]
[TimeControl "180+1"]
[EndTime "9:17:57 PST"]
[Termination "starworld123 won by checkmate"]

1. e4 {[%clk 0:02:59.8]} 1... c5 {[%clk 0:02:30.2]} 2. Nf3 {[%clk 0:02:58.8]}
2... d6 {[%clk 0:02:30.8]} 3. d4 {[%clk 0:02:58.7]} 3... cxd4 {[%clk 0:02:31.7]}
4. Qxd4 {[%clk 0:02:59.1]} 4... Nc6 {[%clk 0:02:31.3]} 5. Bb5 {[%clk 0:02:59.1]}
5... Bd7 {[%clk 0:02:32]} 6. Bxc6 {[%clk 0:02:59.9]} 6... Bxc6 {[%clk
0:02:32.9]} 7. Nc3 {[%clk 0:03:00.6]} 7... Nf6 {[%clk 0:02:32]} 8. Bg5 {[%clk
0:03:00.7]} 8... e6 {[%clk 0:02:32.7]} 9. O-O-O {[%clk 0:03:00.7]} 9... Be7
{[%clk 0:02:33.2]} 10. Rhe1 {[%clk 0:03:01.5]} 10... O-O {[%clk 0:02:32.6]} 11.
Kb1 {[%clk 0:03:02.2]} 11... Rc8 {[%clk 0:02:29.3]} 12. Qxa7 {[%clk 0:02:55.1]}
12... b5 {[%clk 0:02:18.6]} 13. a3 {[%clk 0:02:54.2]} 13... b4 {[%clk
0:02:14.2]} 14. axb4 {[%clk 0:02:46.9]} 14... Ra8 {[%clk 0:02:14.9]} 15. Qd4
{[%clk 0:02:43.6]} 15... Qc8 {[%clk 0:02:03.6]} 16. b5 {[%clk 0:02:21.5]} 16...
Bb7 {[%clk 0:01:54.3]} 17. Nd2 {[%clk 0:01:51.5]} 17... d5 {[%clk 0:01:37.1]}
18. e5 {[%clk 0:01:10.3]} 18... Bc5 {[%clk 0:01:36.9]} 19. Qh4 {[%clk
0:01:09.3]} 19... Nd7 {[%clk 0:01:31.4]} 20. Nb3 {[%clk 0:01:04.5]} 20... Re8
{[%clk 0:01:00.5]} 21. Rd3 {[%clk 0:01:02.2]} 21... Nf8 {[%clk 0:00:55.4]} 22.
Qg4 {[%clk 0:00:44.5]} 22... Bb6 {[%clk 0:00:46.3]} 23. h4 {[%clk 0:00:41.6]}
23... Qc4 {[%clk 0:00:39.9]} 24. Qg3 {[%clk 0:00:31.9]} 24... d4 {[%clk
0:00:39.5]} 25. Bf6 {[%clk 0:00:24.8]} 25... Ng6 {[%clk 0:00:38.6]} 26. h5
{[%clk 0:00:24.9]} 26... dxc3 {[%clk 0:00:31.1]} 27. hxg6 {[%clk 0:00:24.9]}
27... fxg6 {[%clk 0:00:23.1]} 28. Rd7 {[%clk 0:00:14.6]} 28... cxb2 {[%clk
0:00:13.3]} 29. Rxg7+ {[%clk 0:00:14.1]} 29... Kf8 {[%clk 0:00:13.8]} 30. Rxb7
{[%clk 0:00:11.1]} 30... Ra1+ {[%clk 0:00:04.8]} 31. Kxb2 {[%clk 0:00:09.5]}
31... Rxe1 {[%clk 0:00:02.9]} 32. Qh3 {[%clk 0:00:06.8]} 32... Bd4+ {[%clk
0:00:03]} 33. Nxd4 {[%clk 0:00:05.6]} 33... Qxd4+ {[%clk 0:00:03.9]} 34. c3
{[%clk 0:00:02.7]} 34... Qd2+ {[%clk 0:00:04.5]} 35. Kb3 {[%clk 0:00:03.3]}
35... Rb1+ {[%clk 0:00:05]} 36. Kc4 {[%clk 0:00:02.8]} 36... Qd5# {[%clk
0:00:05.6]} 0-1

[Event "Early-Titled-Tuesday-Blitz-February-06-2024"]
[Site "Chess.com"]
[Date "2024.02.06"]
[Round "7"]
[White "Alex_Sahakyan2006"]
[Black "Philippians46"]
[Result "1-0"]
[WhiteElo "2894"]
[BlackElo "2606"]
[TimeControl "180+1"]
[EndTime "9:18:02 PST"]
[Termination "Alex_Sahakyan2006 won on time"]

1. e4 {[%clk 0:03:00.9]} 1... c5 {[%clk 0:02:59.7]} 2. Nf3 {[%clk 0:03:00]} 2...
d6 {[%clk 0:03:00.2]} 3. Nc3 {[%clk 0:02:59.1]} 3... Nf6 {[%clk 0:03:00.5]} 4.
e5 {[%clk 0:02:59.5]} 4... dxe5 {[%clk 0:03:01]} 5. Nxe5 {[%clk 0:03:00.4]} 5...
a6 {[%clk 0:03:01.7]} 6. a4 {[%clk 0:02:58.1]} 6... Nbd7 {[%clk 0:02:55.4]} 7.
Nc4 {[%clk 0:02:57.9]} 7... b6 {[%clk 0:02:40.4]} 8. Qf3 {[%clk 0:02:53.7]} 8...
Ra7 {[%clk 0:02:40.2]} 9. d3 {[%clk 0:02:47.6]} 9... Bb7 {[%clk 0:02:39.6]} 10.
Qg3 {[%clk 0:02:46.6]} 10... g6 {[%clk 0:02:39.6]} 11. Bf4 {[%clk 0:02:41.7]}
11... Bc6 {[%clk 0:02:22.4]} 12. Be2 {[%clk 0:01:57.6]} 12... Bg7 {[%clk
0:02:21]} 13. Bf3 {[%clk 0:01:57.9]} 13... Qa8 {[%clk 0:02:19.3]} 14. a5 {[%clk
0:01:33.7]} 14... Bxf3 {[%clk 0:02:05.6]} 15. axb6 {[%clk 0:01:33.8]} 15... Bxg2
{[%clk 0:02:02]} 16. Rg1 {[%clk 0:01:26.7]} 16... Nxb6 {[%clk 0:01:33.1]} 17.
Nxb6 {[%clk 0:01:19]} 17... Qd8 {[%clk 0:01:17.3]} 18. Bb8 {[%clk 0:01:03.8]}
18... Rb7 {[%clk 0:01:14.2]} 19. Be5 {[%clk 0:00:40.4]} 19... Qxb6 {[%clk
0:01:10]} 20. Qxg2 {[%clk 0:00:40.9]} 20... O-O {[%clk 0:01:08.9]} 21. b3 {[%clk
0:00:29.1]} 21... Rd7 {[%clk 0:00:41.9]} 22. O-O-O {[%clk 0:00:24.6]} 22... a5
{[%clk 0:00:37.4]} 23. Na4 {[%clk 0:00:21.8]} 23... Qb5 {[%clk 0:00:33.2]} 24.
Rge1 {[%clk 0:00:18.7]} 24... Rfd8 {[%clk 0:00:33.1]} 25. Bc3 {[%clk 0:00:14.3]}
25... c4 {[%clk 0:00:32.9]} 26. dxc4 {[%clk 0:00:11.4]} 26... Qf5 {[%clk
0:00:18]} 27. Rxd7 {[%clk 0:00:10.4]} 27... Nxd7 {[%clk 0:00:18.9]} 28. Bxg7
{[%clk 0:00:09.7]} 28... Kxg7 {[%clk 0:00:19.8]} 29. Rd1 {[%clk 0:00:08.7]}
29... Rb8 {[%clk 0:00:16]} 30. Qd5 {[%clk 0:00:09]} 30... Qf4+ {[%clk
0:00:13.2]} 31. Qd2 {[%clk 0:00:09.4]} 31... Qxd2+ {[%clk 0:00:10]} 32. Rxd2
{[%clk 0:00:10.3]} 32... Ne5 {[%clk 0:00:10.7]} 33. Rd5 {[%clk 0:00:09.7]} 33...
Ng4 {[%clk 0:00:08.3]} 34. c5 {[%clk 0:00:08.2]} 34... Rc8 {[%clk 0:00:06.7]}
35. c3 {[%clk 0:00:02.7]} 35... Nxf2 {[%clk 0:00:06.9]} 36. b4 {[%clk
0:00:02.8]} 36... e6 {[%clk 0:00:06]} 37. Rd7 {[%clk 0:00:02.6]} 1-0

[Event "Early-Titled-Tuesday-Blitz-February-06-2024"]
[Site "Chess.com"]
[Date "2024.02.06"]
[Round "7"]
[White "Orest_Vovk"]
[Black "Zohid6"]
[Result "0-1"]
[WhiteElo "2583"]
[BlackElo "2874"]
[TimeControl "180+1"]
[EndTime "9:18:03 PST"]
[Termination "Zohid6 won on time"]

1. g4 {[%clk 0:02:02]} 1... d5 {[%clk 0:02:58.7]} 2. h3 {[%clk 0:01:59.9]} 2...
e5 {[%clk 0:02:57.8]} 3. Bg2 {[%clk 0:02:00]} 3... h5 {[%clk 0:02:55.2]} 4. d4
{[%clk 0:01:59.3]} 4... e4 {[%clk 0:02:49.9]} 5. c4 {[%clk 0:01:58.8]} 5... hxg4
{[%clk 0:02:50.1]} 6. cxd5 {[%clk 0:01:56.7]} 6... gxh3 {[%clk 0:02:47.3]} 7.
Bxe4 {[%clk 0:01:41.8]} 7... Nf6 {[%clk 0:02:46.8]} 8. Bg5 {[%clk 0:01:37]} 8...
Be7 {[%clk 0:02:26.7]} 9. Bxf6 {[%clk 0:01:31.6]} 9... Bxf6 {[%clk 0:02:27.6]}
10. Nc3 {[%clk 0:01:32.2]} 10... Qe7 {[%clk 0:02:12.3]} 11. Qd3 {[%clk 0:01:31]}
11... Na6 {[%clk 0:02:10.6]} 12. a3 {[%clk 0:01:29.1]} 12... Bd7 {[%clk
0:02:00.2]} 13. Nxh3 {[%clk 0:01:24.6]} 13... O-O-O {[%clk 0:01:56.9]} 14. O-O-O
{[%clk 0:01:13.5]} 14... Rh4 {[%clk 0:01:56.3]} 15. Ng1 {[%clk 0:01:06]} 15...
Rxh1 {[%clk 0:01:44.3]} 16. Bxh1 {[%clk 0:01:06.9]} 16... Rh8 {[%clk 0:01:45.1]}
17. Be4 {[%clk 0:00:57.7]} 17... Bh4 {[%clk 0:01:40.5]} 18. Nf3 {[%clk
0:00:44.7]} 18... Bxf2 {[%clk 0:01:31.7]} 19. Ne5 {[%clk 0:00:44.4]} 19... Nb8
{[%clk 0:01:27.3]} 20. Bf5 {[%clk 0:00:38.8]} 20... Qg5+ {[%clk 0:01:23.5]} 21.
Kb1 {[%clk 0:00:31.5]} 21... Qxf5 {[%clk 0:01:18.8]} 22. e4 {[%clk 0:00:31.6]}
22... Qh3 {[%clk 0:01:16.8]} 23. Qc4 {[%clk 0:00:24.8]} 23... f6 {[%clk
0:01:06.2]} 24. d6 {[%clk 0:00:12.1]} 24... c6 {[%clk 0:00:50.3]} 25. Ng6 {[%clk
0:00:11.9]} 25... Re8 {[%clk 0:00:48.2]} 26. Ne7+ {[%clk 0:00:11.3]} 26... Kd8
{[%clk 0:00:47.6]} 27. Qb4 {[%clk 0:00:09.1]} 27... Qe6 {[%clk 0:00:46.2]} 28.
Qxb7 {[%clk 0:00:06.1]} 28... Qxd6 {[%clk 0:00:45.8]} 29. Nf5 {[%clk 0:00:04.9]}
29... Qc7 {[%clk 0:00:45.5]} 30. Qb4 {[%clk 0:00:04.2]} 30... Bxf5 {[%clk
0:00:41]} 31. exf5 {[%clk 0:00:05.1]} 31... Bg3 {[%clk 0:00:40.6]} 32. d5 {[%clk
0:00:04.8]} 32... c5 {[%clk 0:00:40.3]} 33. Qg4 {[%clk 0:00:04.9]} 33... Bd6
{[%clk 0:00:39.9]} 34. Nb5 {[%clk 0:00:04.4]} 34... Qd7 {[%clk 0:00:39.8]} 35.
Nxd6 {[%clk 0:00:04.6]} 35... Qxd6 {[%clk 0:00:40.7]} 36. Qxg7 {[%clk
0:00:04.9]} 36... Nd7 {[%clk 0:00:41.5]} 37. Qg1 {[%clk 0:00:04.1]} 37... Kc7
{[%clk 0:00:41.5]} 38. Qf1 {[%clk 0:00:03.9]} 38... Rb8 {[%clk 0:00:40.9]} 39.
Qc4 {[%clk 0:00:03.3]} 39... Ne5 {[%clk 0:00:38.9]} 40. Qa4 {[%clk 0:00:02.7]}
40... a6 {[%clk 0:00:35.7]} 41. Rh1 {[%clk 0:00:02.6]} 41... Qxd5 {[%clk
0:00:32.1]} 42. Rh7+ {[%clk 0:00:02.4]} 42... Nd7 {[%clk 0:00:32.6]} 43. Qa5+
{[%clk 0:00:02.4]} 43... Rb6 {[%clk 0:00:32.8]} 44. Ka1 {[%clk 0:00:01.8]} 44...
Qd1+ {[%clk 0:00:32.7]} 45. Ka2 {[%clk 0:00:01.7]} 45... Qb3+ {[%clk 0:00:33.6]}
0-1

[Event "Early-Titled-Tuesday-Blitz-February-06-2024"]
[Site "Chess.com"]
[Date "2024.02.06"]
[Round "7"]
[White "Yan_Dyomin2010"]
[Black "Kotofeyca"]
[Result "1-0"]
[WhiteElo "2589"]
[BlackElo "2419"]
[TimeControl "180+1"]
[EndTime "9:18:03 PST"]
[Termination "Yan_Dyomin2010 won by checkmate"]

1. e4 {[%clk 0:03:00.9]} 1... c5 {[%clk 0:02:59.8]} 2. c3 {[%clk 0:03:00.5]}
2... Nf6 {[%clk 0:02:59.4]} 3. e5 {[%clk 0:03:00.5]} 3... Nd5 {[%clk 0:03:00]}
4. Bc4 {[%clk 0:03:00.8]} 4... Nb6 {[%clk 0:02:59.6]} 5. Bb3 {[%clk 0:03:01.1]}
5... d5 {[%clk 0:03:00]} 6. exd6 {[%clk 0:03:01.3]} 6... e6 {[%clk 0:03:00.5]}
7. Nf3 {[%clk 0:03:01.1]} 7... Bxd6 {[%clk 0:03:00.7]} 8. O-O {[%clk 0:03:01.7]}
8... Nc6 {[%clk 0:02:58.4]} 9. d4 {[%clk 0:03:01.6]} 9... cxd4 {[%clk
0:02:57.7]} 10. cxd4 {[%clk 0:03:02.5]} 10... Nb4 {[%clk 0:02:50.2]} 11. Nc3
{[%clk 0:03:02.1]} 11... O-O {[%clk 0:02:49.9]} 12. Re1 {[%clk 0:02:55.9]} 12...
Bd7 {[%clk 0:02:45.9]} 13. Ne5 {[%clk 0:02:55.3]} 13... Rc8 {[%clk 0:02:33.9]}
14. Qf3 {[%clk 0:02:51.9]} 14... Bc6 {[%clk 0:02:24.3]} 15. Qg3 {[%clk
0:02:46.3]} 15... Kh8 {[%clk 0:01:53.2]} 16. Qg4 {[%clk 0:02:30.4]} 16... Bd5
{[%clk 0:01:49.3]} 17. Nxd5 {[%clk 0:02:26.2]} 17... N6xd5 {[%clk 0:01:39.4]}
18. Qe4 {[%clk 0:01:56.8]} 18... Qc7 {[%clk 0:00:43.7]} 19. Bd2 {[%clk
0:01:47.3]} 19... Nc6 {[%clk 0:00:30.8]} 20. Rac1 {[%clk 0:01:31.2]} 20... Rfd8
{[%clk 0:00:25.4]} 21. g3 {[%clk 0:01:13.9]} 21... Bxe5 {[%clk 0:00:24.9]} 22.
dxe5 {[%clk 0:01:13.7]} 22... Nde7 {[%clk 0:00:20.6]} 23. Bg5 {[%clk 0:01:12.3]}
23... Rd4 {[%clk 0:00:19.1]} 24. Qf3 {[%clk 0:00:24.7]} 24... Nxe5 {[%clk
0:00:18.3]} 25. Qe3 {[%clk 0:00:20.7]} 25... N7c6 {[%clk 0:00:16.2]} 26. Bf4
{[%clk 0:00:18.4]} 26... f6 {[%clk 0:00:13.7]} 27. Bxe6 {[%clk 0:00:17.8]} 27...
Rcd8 {[%clk 0:00:12.9]} 28. Bb3 {[%clk 0:00:18.4]} 28... Qd7 {[%clk 0:00:11.9]}
29. Bc2 {[%clk 0:00:17.4]} 29... Qg4 {[%clk 0:00:11.6]} 30. Be4 {[%clk
0:00:16.7]} 30... h5 {[%clk 0:00:10.4]} 31. Bxe5 {[%clk 0:00:16.6]} 31... Nxe5
{[%clk 0:00:10]} 32. Bxb7 {[%clk 0:00:16.8]} 32... Rd3 {[%clk 0:00:10.1]} 33.
Qe2 {[%clk 0:00:15.8]} 33... Nf3+ {[%clk 0:00:09.3]} 34. Bxf3 {[%clk 0:00:15.7]}
34... Rxf3 {[%clk 0:00:10.2]} 35. Kg2 {[%clk 0:00:16.1]} 35... Rdd3 {[%clk
0:00:09.4]} 36. Qe8+ {[%clk 0:00:12.4]} 36... Kh7 {[%clk 0:00:09.3]} 37. Qe4+
{[%clk 0:00:13]} 37... Qxe4 {[%clk 0:00:08.8]} 38. Rxe4 {[%clk 0:00:13.6]} 38...
f5 {[%clk 0:00:08.6]} 39. Re2 {[%clk 0:00:13.5]} 39... h4 {[%clk 0:00:07.5]} 40.
Rc4 {[%clk 0:00:13.5]} 40... hxg3 {[%clk 0:00:07.3]} 41. hxg3 {[%clk 0:00:14.2]}
41... g5 {[%clk 0:00:07.5]} 42. Re6 {[%clk 0:00:12.8]} 42... g4 {[%clk
0:00:03.7]} 43. Rc7+ {[%clk 0:00:13.1]} 43... Kg8 {[%clk 0:00:04]} 44. Re8#
{[%clk 0:00:13.8]} 1-0

[Event "Early-Titled-Tuesday-Blitz-February-06-2024"]
[Site "Chess.com"]
[Date "2024.02.06"]
[Round "7"]
[White "ploxoi"]
[Black "gpsji27"]
[Result "1-0"]
[WhiteElo "2451"]
[BlackElo "2312"]
[TimeControl "180+1"]
[EndTime "9:18:03 PST"]
[Termination "ploxoi won by resignation"]

1. d4 {[%clk 0:03:00.9]} 1... d5 {[%clk 0:02:59.7]} 2. c4 {[%clk 0:03:01.1]}
2... e6 {[%clk 0:02:59.9]} 3. Nf3 {[%clk 0:03:01.5]} 3... Nf6 {[%clk 0:03:00.1]}
4. g3 {[%clk 0:03:01.8]} 4... Be7 {[%clk 0:02:58.7]} 5. Bg2 {[%clk 0:03:02.2]}
5... O-O {[%clk 0:02:58.5]} 6. O-O {[%clk 0:03:02.6]} 6... dxc4 {[%clk
0:02:57.1]} 7. Qc2 {[%clk 0:03:02.8]} 7... a6 {[%clk 0:02:51.6]} 8. a4 {[%clk
0:03:02.9]} 8... Bd7 {[%clk 0:02:49.5]} 9. Rd1 {[%clk 0:03:02.7]} 9... Bc6
{[%clk 0:02:32.9]} 10. Nc3 {[%clk 0:03:02.9]} 10... Nbd7 {[%clk 0:02:30.5]} 11.
e4 {[%clk 0:03:02.3]} 11... b5 {[%clk 0:02:26.4]} 12. d5 {[%clk 0:02:51.1]}
12... exd5 {[%clk 0:02:25.7]} 13. e5 {[%clk 0:02:50.9]} 13... Ne4 {[%clk
0:02:23.6]} 14. Nxd5 {[%clk 0:02:50.2]} 14... Bxd5 {[%clk 0:02:16.9]} 15. Rxd5
{[%clk 0:02:51.1]} 15... c6 {[%clk 0:02:17.6]} 16. Rxd7 {[%clk 0:02:38.5]} 16...
Qxd7 {[%clk 0:02:18.5]} 17. Qxe4 {[%clk 0:02:39.1]} 17... Qd1+ {[%clk
0:02:14.2]} 18. Qe1 {[%clk 0:02:39.3]} 18... Rfd8 {[%clk 0:02:11.8]} 19. Be3
{[%clk 0:02:34.7]} 19... Qb3 {[%clk 0:02:08.5]} 20. Nd4 {[%clk 0:02:32.3]} 20...
Rxd4 {[%clk 0:01:58.8]} 21. Bxd4 {[%clk 0:02:32.2]} 21... Rd8 {[%clk 0:01:59.3]}
22. Qc3 {[%clk 0:02:28.5]} 22... c5 {[%clk 0:01:53.6]} 23. Qxb3 {[%clk
0:02:24.7]} 23... cxb3 {[%clk 0:01:54.5]} 24. Be3 {[%clk 0:02:24.1]} 24... c4
{[%clk 0:01:52.7]} 25. axb5 {[%clk 0:02:21.2]} 25... axb5 {[%clk 0:01:53.6]} 26.
Bf1 {[%clk 0:02:20.4]} 26... g6 {[%clk 0:01:52.3]} 27. Kg2 {[%clk 0:02:14.2]}
27... Rc8 {[%clk 0:01:43.2]} 28. Bd4 {[%clk 0:02:06]} 28... h5 {[%clk
0:01:34.8]} 29. h4 {[%clk 0:02:00.8]} 29... b4 {[%clk 0:01:16.4]} 30. Rc1 {[%clk
0:01:59.3]} 30... c3 {[%clk 0:01:16.1]} 31. bxc3 {[%clk 0:01:41]} 31... b2
{[%clk 0:01:15.7]} 32. Rb1 {[%clk 0:01:41.2]} 32... bxc3 {[%clk 0:01:14.9]} 33.
Bxc3 {[%clk 0:01:41.8]} 33... Rxc3 {[%clk 0:01:15.8]} 34. Rxb2 {[%clk
0:01:42.3]} 34... Rc5 {[%clk 0:01:15.7]} 35. f4 {[%clk 0:01:39.6]} 35... Rc3
{[%clk 0:01:15]} 36. Be2 {[%clk 0:01:33.5]} 36... Bc5 {[%clk 0:01:14.2]} 37. Bf3
{[%clk 0:01:33.8]} 37... Ba3 {[%clk 0:01:12.8]} 38. Rb8+ {[%clk 0:01:31.8]}
38... Kg7 {[%clk 0:01:12.8]} 39. Rb7 {[%clk 0:01:31.7]} 39... Kf8 {[%clk
0:01:06.4]} 40. Bd5 {[%clk 0:01:31.1]} 40... Be7 {[%clk 0:01:05.6]} 41. Ra7
{[%clk 0:01:17.1]} 41... Rc2+ {[%clk 0:01:01.6]} 42. Kf3 {[%clk 0:01:17]} 42...
Rf2+ {[%clk 0:01:01.2]} 43. Ke4 {[%clk 0:01:11.6]} 43... Bc5 {[%clk 0:01:01.6]}
44. Rxf7+ {[%clk 0:01:10.7]} 44... Ke8 {[%clk 0:01:02.2]} 45. Rg7 {[%clk
0:01:09.5]} 45... Re2+ {[%clk 0:00:59.4]} 46. Kf3 {[%clk 0:01:09.7]} 46... Rf2+
{[%clk 0:00:59.4]} 47. Ke4 {[%clk 0:01:09.4]} 47... Re2+ {[%clk 0:01:00]} 48.
Kd3 {[%clk 0:01:09.8]} 48... Re3+ {[%clk 0:00:47.8]} 49. Kc4 {[%clk 0:01:09.5]}
49... Bf8 {[%clk 0:00:33.8]} 50. Rxg6 {[%clk 0:01:08.4]} 50... Be7 {[%clk
0:00:30.9]} 51. Be6 {[%clk 0:01:03.1]} 51... Bd8 {[%clk 0:00:19.3]} 52. Rg8+
{[%clk 0:00:49.4]} 52... Ke7 {[%clk 0:00:19.1]} 53. Bf5 {[%clk 0:00:49.9]} 53...
Bb6 {[%clk 0:00:16.8]} 54. Kd5 {[%clk 0:00:49.9]} 54... Rd3+ {[%clk 0:00:16.8]}
55. Bxd3 {[%clk 0:00:49.5]} 1-0

[Event "Early-Titled-Tuesday-Blitz-February-06-2024"]
[Site "Chess.com"]
[Date "2024.02.06"]
[Round "7"]
[White "soloderisas"]
[Black "GMAkobianSTL"]
[Result "1-0"]
[WhiteElo "2542"]
[BlackElo "2711"]
[TimeControl "180+1"]
[EndTime "9:18:04 PST"]
[Termination "soloderisas won by checkmate"]

1. d4 {[%clk 0:03:00.9]} 1... e6 {[%clk 0:02:53.9]} 2. Nf3 {[%clk 0:02:59.5]}
2... f5 {[%clk 0:02:53]} 3. Bf4 {[%clk 0:02:59.3]} 3... Nf6 {[%clk 0:02:52.9]}
4. e3 {[%clk 0:02:59.6]} 4... b6 {[%clk 0:02:52]} 5. Be2 {[%clk 0:02:59.7]} 5...
Bb7 {[%clk 0:02:52]} 6. O-O {[%clk 0:03:00.1]} 6... Be7 {[%clk 0:02:52.2]} 7. h3
{[%clk 0:02:59.1]} 7... O-O {[%clk 0:02:51.9]} 8. Nbd2 {[%clk 0:02:59.7]} 8...
Bd6 {[%clk 0:02:45]} 9. c4 {[%clk 0:02:58.9]} 9... Bxf4 {[%clk 0:02:44.4]} 10.
exf4 {[%clk 0:02:59.1]} 10... c5 {[%clk 0:02:37.5]} 11. Re1 {[%clk 0:02:43.7]}
11... Qc7 {[%clk 0:02:14.3]} 12. Nb3 {[%clk 0:02:36.7]} 12... Ne4 {[%clk
0:02:06.8]} 13. Qc1 {[%clk 0:02:24.7]} 13... d6 {[%clk 0:02:02.6]} 14. Qe3
{[%clk 0:02:24]} 14... Nd7 {[%clk 0:02:01.8]} 15. Rad1 {[%clk 0:02:21.8]} 15...
Rae8 {[%clk 0:01:58.5]} 16. Bf1 {[%clk 0:02:19]} 16... a6 {[%clk 0:01:53.4]} 17.
dxc5 {[%clk 0:02:05.1]} 17... bxc5 {[%clk 0:01:51]} 18. Nbd2 {[%clk 0:01:59.4]}
18... Ndf6 {[%clk 0:01:45.7]} 19. Ng5 {[%clk 0:01:54.4]} 19... h6 {[%clk
0:01:33]} 20. Ngxe4 {[%clk 0:01:52.4]} 20... fxe4 {[%clk 0:01:32.6]} 21. g3
{[%clk 0:01:47.5]} 21... d5 {[%clk 0:01:21.9]} 22. cxd5 {[%clk 0:01:47.5]} 22...
exd5 {[%clk 0:01:21.8]} 23. Rc1 {[%clk 0:01:47.2]} 23... Rc8 {[%clk 0:01:20.7]}
24. b4 {[%clk 0:01:38.6]} 24... d4 {[%clk 0:01:12.2]} 25. Qb3+ {[%clk
0:01:29.9]} 25... Kh8 {[%clk 0:00:44.1]} 26. Rxc5 {[%clk 0:01:30.2]} 26... Qd7
{[%clk 0:00:38.1]} 27. Nc4 {[%clk 0:01:26.8]} 27... Rxc5 {[%clk 0:00:27.6]} 28.
bxc5 {[%clk 0:01:27.7]} 28... Bd5 {[%clk 0:00:17.4]} 29. Qb2 {[%clk 0:01:19.9]}
29... Bxc4 {[%clk 0:00:16.7]} 30. Bxc4 {[%clk 0:01:20.5]} 30... Rc8 {[%clk
0:00:11.9]} 31. Bxa6 {[%clk 0:01:16.1]} 31... Rxc5 {[%clk 0:00:11.7]} 32. Qb8+
{[%clk 0:01:16.6]} 32... Kh7 {[%clk 0:00:11.5]} 33. a4 {[%clk 0:01:08]} 33... d3
{[%clk 0:00:11.4]} 34. Bb5 {[%clk 0:01:06.8]} 34... Qd4 {[%clk 0:00:10.2]} 35.
a5 {[%clk 0:00:51.2]} 35... d2 {[%clk 0:00:09.6]} 36. Rd1 {[%clk 0:00:50]} 36...
e3 {[%clk 0:00:07.9]} 37. Kf1 {[%clk 0:00:40.7]} 37... exf2 {[%clk 0:00:06.2]}
38. a6 {[%clk 0:00:31.4]} 38... Ne4 {[%clk 0:00:05.6]} 39. a7 {[%clk 0:00:25.5]}
39... Nxg3+ {[%clk 0:00:03.7]} 40. Kg2 {[%clk 0:00:25.3]} 40... f1=Q+ {[%clk
0:00:03.5]} 41. Bxf1 {[%clk 0:00:23.6]} 41... Nxf1 {[%clk 0:00:03.8]} 42. a8=Q
{[%clk 0:00:20.9]} 42... Ne3+ {[%clk 0:00:03.7]} 43. Kf3 {[%clk 0:00:19.3]}
43... Nxd1 {[%clk 0:00:02.7]} 44. Qh8+ {[%clk 0:00:19.6]} 44... Kg6 {[%clk
0:00:02.7]} 45. Qae8+ {[%clk 0:00:19.9]} 45... Kf5 {[%clk 0:00:01.8]} 46. Qh7+
{[%clk 0:00:19.3]} 46... Kf6 {[%clk 0:00:01.8]} 47. Qhg6# {[%clk 0:00:19.4]} 1-0

[Event "Early-Titled-Tuesday-Blitz-February-06-2024"]
[Site "Chess.com"]
[Date "2024.02.06"]
[Round "7"]
[White "Keeper0416"]
[Black "KhazhatulyAlikhan"]
[Result "1-0"]
[WhiteElo "2571"]
[BlackElo "2408"]
[TimeControl "180+1"]
[EndTime "9:18:09 PST"]
[Termination "Keeper0416 won by checkmate"]

1. f4 {[%clk 0:02:59.7]} 1... c5 {[%clk 0:02:59.5]} 2. e3 {[%clk 0:03:00]} 2...
e6 {[%clk 0:02:59.6]} 3. b3 {[%clk 0:02:59.9]} 3... d5 {[%clk 0:02:59.3]} 4. Bb2
{[%clk 0:03:00.4]} 4... Nf6 {[%clk 0:02:59.5]} 5. Nf3 {[%clk 0:03:00.3]} 5...
Nc6 {[%clk 0:02:59.3]} 6. Bb5 {[%clk 0:03:00.3]} 6... Bd7 {[%clk 0:02:58.4]} 7.
O-O {[%clk 0:03:00]} 7... Be7 {[%clk 0:02:58.8]} 8. Qe1 {[%clk 0:02:47.7]} 8...
a6 {[%clk 0:02:49.7]} 9. Bd3 {[%clk 0:02:45]} 9... b5 {[%clk 0:02:45.6]} 10. a3
{[%clk 0:02:44.6]} 10... c4 {[%clk 0:02:42.1]} 11. Be2 {[%clk 0:02:44.2]} 11...
cxb3 {[%clk 0:02:41.4]} 12. cxb3 {[%clk 0:02:45.1]} 12... Na5 {[%clk 0:02:42.3]}
13. Nd4 {[%clk 0:02:44.8]} 13... Bc5 {[%clk 0:02:37.3]} 14. Bd1 {[%clk
0:02:36.5]} 14... Nc6 {[%clk 0:02:33.5]} 15. Nf3 {[%clk 0:02:32.2]} 15... Qb6
{[%clk 0:02:13.1]} 16. b4 {[%clk 0:02:29.1]} 16... Be7 {[%clk 0:02:13.1]} 17.
Bc2 {[%clk 0:02:27.1]} 17... a5 {[%clk 0:02:12.3]} 18. bxa5 {[%clk 0:02:24]}
18... Nxa5 {[%clk 0:02:13.2]} 19. Qg3 {[%clk 0:02:16.3]} 19... g6 {[%clk
0:01:40.7]} 20. Ne5 {[%clk 0:02:01.7]} 20... Nc4 {[%clk 0:01:21.7]} 21. Bd4
{[%clk 0:02:01.4]} 21... Qc7 {[%clk 0:01:17.4]} 22. Nc3 {[%clk 0:01:37.1]} 22...
Nxd2 {[%clk 0:00:57.2]} 23. Rf2 {[%clk 0:00:51]} 23... Nc4 {[%clk 0:00:42.7]}
24. Qh4 {[%clk 0:00:05.5]} 24... b4 {[%clk 0:00:37.4]} 25. Nxd7 {[%clk
0:00:04.7]} 25... Nxd7 {[%clk 0:00:34.8]} 26. Qh6 {[%clk 0:00:04.9]} 26... Rf8
{[%clk 0:00:17.1]} 27. Nb5 {[%clk 0:00:05.2]} 27... Qb7 {[%clk 0:00:15.7]} 28.
a4 {[%clk 0:00:04.6]} 28... Ndb6 {[%clk 0:00:11.9]} 29. Bg7 {[%clk 0:00:03]}
29... Nxe3 {[%clk 0:00:05.7]} 30. Bxf8 {[%clk 0:00:02.2]} 30... Bxf8 {[%clk
0:00:06.6]} 31. Qxh7 {[%clk 0:00:01.9]} 31... Bc5 {[%clk 0:00:04.4]} 32. Bxg6
{[%clk 0:00:02.1]} 32... Ng4 {[%clk 0:00:03.3]} 33. Qg8+ {[%clk 0:00:02.5]}
33... Kd7 {[%clk 0:00:02.5]} 34. Qxf7+ {[%clk 0:00:02]} 34... Kc8 {[%clk
0:00:01.3]} 35. Qe8# {[%clk 0:00:01.9]} 1-0